[Event "Late-Titled-Tuesday-Blitz-October-03-2023"]
[Site "Chess.com"]
[Date "2023.10.03"]
[Round "10"]
[White "ChadBiryani"]
[Black "flukeyNZ"]
[Result "1-0"]
[WhiteElo "2501"]
[BlackElo "2243"]
[TimeControl "180+1"]
[EndTime "15:52:31 PDT"]
[Termination "ChadBiryani won by resignation"]

1. Nf3 {[%clk 0:02:54.7]} 1... Nf6 {[%clk 0:02:56.9]} 2. c4 {[%clk 0:02:52.6]}
2... g6 {[%clk 0:02:57.4]} 3. g3 {[%clk 0:02:52.5]} 3... Bg7 {[%clk 0:02:57.9]}
4. Bg2 {[%clk 0:02:52.8]} 4... O-O {[%clk 0:02:58.8]} 5. O-O {[%clk 0:02:53]}
5... d6 {[%clk 0:02:59]} 6. Nc3 {[%clk 0:02:51]} 6... c5 {[%clk 0:02:58.2]} 7.
b3 {[%clk 0:02:50.7]} 7... Ne4 {[%clk 0:02:55.5]} 8. Bb2 {[%clk 0:02:49.7]} 8...
Nxc3 {[%clk 0:02:53.1]} 9. Bxc3 {[%clk 0:02:48.4]} 9... Bxc3 {[%clk 0:02:52.2]}
10. dxc3 {[%clk 0:02:49.3]} 10... Nd7 {[%clk 0:02:47.9]} 11. Qd2 {[%clk
0:02:42.7]} 11... Nf6 {[%clk 0:02:46.7]} 12. h3 {[%clk 0:02:40.4]} 12... Kg7
{[%clk 0:02:45.8]} 13. Rfe1 {[%clk 0:02:37.9]} 13... Rb8 {[%clk 0:02:44.1]} 14.
e4 {[%clk 0:02:37.5]} 14... b6 {[%clk 0:02:42.3]} 15. Rad1 {[%clk 0:02:34.1]}
15... Bb7 {[%clk 0:02:41.8]} 16. Qc2 {[%clk 0:02:33.8]} 16... Qc7 {[%clk
0:02:33.2]} 17. e5 {[%clk 0:02:26]} 17... dxe5 {[%clk 0:02:30.2]} 18. Nxe5
{[%clk 0:02:24.9]} 18... Bxg2 {[%clk 0:02:27.4]} 19. Kxg2 {[%clk 0:02:25.8]}
19... Rbd8 {[%clk 0:02:22.4]} 20. Qe2 {[%clk 0:02:24.9]} 20... Rxd1 {[%clk
0:02:19.5]} 21. Rxd1 {[%clk 0:02:25.8]} 21... Qb7+ {[%clk 0:02:12.2]} 22. f3
{[%clk 0:02:22.9]} 22... Qc7 {[%clk 0:01:55.1]} 23. Ng4 {[%clk 0:02:10.7]} 23...
Nxg4 {[%clk 0:01:50.9]} 24. hxg4 {[%clk 0:02:11.6]} 24... Rd8 {[%clk 0:01:46.3]}
25. Rxd8 {[%clk 0:02:08.1]} 25... Qxd8 {[%clk 0:01:46.2]} 26. Qe5+ {[%clk
0:02:08.7]} 26... f6 {[%clk 0:01:41]} 27. Qe2 {[%clk 0:02:07.4]} 27... Kf7
{[%clk 0:01:40.2]} 28. Qe3 {[%clk 0:02:04.2]} 28... Qd1 {[%clk 0:01:38.7]} 29.
Qe4 {[%clk 0:01:47.5]} 29... Qd2+ {[%clk 0:01:35.5]} 30. Kh3 {[%clk 0:01:46.9]}
30... Qxa2 {[%clk 0:01:34.1]} 31. Qd5+ {[%clk 0:01:46.7]} 31... Kf8 {[%clk
0:01:31.3]} 32. Qd8+ {[%clk 0:01:46.8]} 32... Kf7 {[%clk 0:01:31.3]} 33. Qh8
{[%clk 0:01:42.1]} 33... g5 {[%clk 0:01:22.7]} 34. Qxh7+ {[%clk 0:01:40.8]}
34... Ke8 {[%clk 0:01:20.4]} 35. Qg8+ {[%clk 0:01:39.5]} 35... Kd7 {[%clk
0:01:19.5]} 36. Qd5+ {[%clk 0:01:40]} 36... Ke8 {[%clk 0:01:19.7]} 37. f4 {[%clk
0:01:34.9]} 37... Qxb3 {[%clk 0:01:08.9]} 38. fxg5 {[%clk 0:01:28.8]} 38... fxg5
{[%clk 0:01:08.8]} 39. Qg8+ {[%clk 0:01:27.9]} 39... Kd7 {[%clk 0:01:08.3]} 40.
Qd5+ {[%clk 0:01:28.5]} 40... Ke8 {[%clk 0:01:08]} 41. Qg8+ {[%clk 0:01:25.2]}
41... Kd7 {[%clk 0:01:07.7]} 42. Qxg5 {[%clk 0:01:25.5]} 42... Qxc4 {[%clk
0:01:06.8]} 43. Qf5+ {[%clk 0:01:25.4]} 43... Qe6 {[%clk 0:01:04.2]} 44. Qd3+
{[%clk 0:01:25.4]} 44... Kc6 {[%clk 0:01:02.9]} 45. Qa6 {[%clk 0:01:15.8]} 45...
Qh6+ {[%clk 0:00:59.6]} 46. Kg2 {[%clk 0:01:15.5]} 46... Qd2+ {[%clk 0:00:59.5]}
47. Kh3 {[%clk 0:01:15.4]} 47... Qh6+ {[%clk 0:00:58.4]} 48. Kg2 {[%clk
0:01:14.9]} 48... Qd2+ {[%clk 0:00:58]} 49. Kh3 {[%clk 0:01:10.5]} 49... Qxc3
{[%clk 0:00:57.9]} 50. g5 {[%clk 0:01:02.1]} 50... c4 {[%clk 0:00:50.9]} 51. g6
{[%clk 0:00:57.2]} 51... Qd3 {[%clk 0:00:47]} 52. Qc8+ {[%clk 0:00:54.4]} 52...
Kb5 {[%clk 0:00:44.6]} 53. Qe8+ {[%clk 0:00:53.2]} 53... Kb4 {[%clk 0:00:44.3]}
54. Qxe7+ {[%clk 0:00:53.6]} 54... Kb3 {[%clk 0:00:43.8]} 55. g7 {[%clk
0:00:53]} 55... Qh7+ {[%clk 0:00:43.1]} 56. Kg4 {[%clk 0:00:52.6]} 56... c3
{[%clk 0:00:37.5]} 57. Qe6+ {[%clk 0:00:51]} 57... Kb2 {[%clk 0:00:36.8]} 58.
g8=Q {[%clk 0:00:51.7]} 58... Qxg8+ {[%clk 0:00:35.6]} 59. Qxg8 {[%clk
0:00:52.6]} 59... c2 {[%clk 0:00:35.3]} 60. Qg7+ {[%clk 0:00:43.4]} 60... Kb1
{[%clk 0:00:35.2]} 61. Qg6 {[%clk 0:00:43.5]} 61... Kb2 {[%clk 0:00:35.1]} 62.
Qf6+ {[%clk 0:00:43.5]} 62... Kb1 {[%clk 0:00:32.5]} 63. Qf5 {[%clk 0:00:43.7]}
63... Kb2 {[%clk 0:00:32.9]} 64. Qe5+ {[%clk 0:00:43.9]} 64... Kb1 {[%clk
0:00:33]} 65. Qe4 {[%clk 0:00:44.1]} 65... Kb2 {[%clk 0:00:32]} 66. Qd4+ {[%clk
0:00:44.3]} 66... Kb1 {[%clk 0:00:30.3]} 67. Qd3 {[%clk 0:00:43.8]} 67... a5
{[%clk 0:00:29.3]} 68. Qb3+ {[%clk 0:00:43]} 68... Kc1 {[%clk 0:00:24.5]} 69.
Qxb6 {[%clk 0:00:29.1]} 69... a4 {[%clk 0:00:20.1]} 70. Qe3+ {[%clk 0:00:28.3]}
70... Kd1 {[%clk 0:00:19.8]} 71. Qd3+ {[%clk 0:00:27.7]} 71... Kc1 {[%clk
0:00:17.9]} 72. Kh5 {[%clk 0:00:19.4]} 72... a3 {[%clk 0:00:16.8]} 73. Qxa3+
{[%clk 0:00:19.3]} 73... Kb1 {[%clk 0:00:15.8]} 74. Qb3+ {[%clk 0:00:19.5]}
74... Kc1 {[%clk 0:00:15.5]} 75. Qxc2+ {[%clk 0:00:19.3]} 75... Kxc2 {[%clk
0:00:14.7]} 76. g4 {[%clk 0:00:20.2]} 1-0

[Event "Late-Titled-Tuesday-Blitz-October-03-2023"]
[Site "Chess.com"]
[Date "2023.10.03"]
[Round "10"]
[White "CarlosjPineror"]
[Black "louis198"]
[Result "1/2-1/2"]
[WhiteElo "2522"]
[BlackElo "2631"]
[TimeControl "180+1"]
[EndTime "15:52:49 PDT"]
[Termination "Game drawn by repetition"]

1. e4 {[%clk 0:02:56.2]} 1... e6 {[%clk 0:02:58.9]} 2. d4 {[%clk 0:02:55.9]}
2... d5 {[%clk 0:02:58.8]} 3. e5 {[%clk 0:02:56.2]} 3... c5 {[%clk 0:02:58.9]}
4. c3 {[%clk 0:02:56.4]} 4... Nc6 {[%clk 0:02:58.7]} 5. Nf3 {[%clk 0:02:56.6]}
5... Qb6 {[%clk 0:02:59.6]} 6. a3 {[%clk 0:02:56.3]} 6... c4 {[%clk 0:02:59.7]}
7. Be2 {[%clk 0:02:54.5]} 7... Na5 {[%clk 0:03:00.4]} 8. Nbd2 {[%clk 0:02:53.1]}
8... Bd7 {[%clk 0:03:00.9]} 9. O-O {[%clk 0:02:53.4]} 9... Ne7 {[%clk
0:03:01.8]} 10. Rb1 {[%clk 0:02:50.6]} 10... Qc7 {[%clk 0:03:02.2]} 11. h4
{[%clk 0:02:34.9]} 11... Nc8 {[%clk 0:03:01.8]} 12. h5 {[%clk 0:02:32.7]} 12...
h6 {[%clk 0:03:01.8]} 13. Ne1 {[%clk 0:02:31.4]} 13... Nb6 {[%clk 0:03:01.8]}
14. Bg4 {[%clk 0:02:28.6]} 14... O-O-O {[%clk 0:02:59.5]} 15. f4 {[%clk
0:02:28.1]} 15... g6 {[%clk 0:02:57.4]} 16. Qf3 {[%clk 0:02:27.5]} 16... Be7
{[%clk 0:02:52.5]} 17. Qh3 {[%clk 0:02:27.1]} 17... Qc6 {[%clk 0:02:45.8]} 18.
g3 {[%clk 0:02:13.4]} 18... Kb8 {[%clk 0:02:45.8]} 19. Ng2 {[%clk 0:02:12.8]}
19... Rdg8 {[%clk 0:02:43.8]} 20. Ne3 {[%clk 0:02:13]} 20... gxh5 {[%clk
0:02:34.2]} 21. Bxh5 {[%clk 0:02:11.6]} 21... Rg7 {[%clk 0:02:30.9]} 22. Kh2
{[%clk 0:02:06.9]} 22... Rhg8 {[%clk 0:02:29.3]} 23. Rg1 {[%clk 0:02:03.7]}
23... f6 {[%clk 0:02:27.9]} 24. exf6 {[%clk 0:01:54.3]} 24... Bxf6 {[%clk
0:02:27.4]} 25. Qf1 {[%clk 0:01:46.5]} 25... Be8 {[%clk 0:02:27.2]} 26. Qf3
{[%clk 0:01:45.8]} 26... Nc8 {[%clk 0:01:58.7]} 27. Bxe8 {[%clk 0:01:42.2]}
27... Qxe8 {[%clk 0:01:58.8]} 28. f5 {[%clk 0:01:29]} 28... Bg5 {[%clk
0:01:30.3]} 29. Ndf1 {[%clk 0:01:26.3]} 29... Nb3 {[%clk 0:01:18.4]} 30. Rg2
{[%clk 0:01:03.2]} 30... Nb6 {[%clk 0:01:14.7]} 31. Bd2 {[%clk 0:01:02]} 31...
Nxd2 {[%clk 0:01:10.3]} 32. Nxd2 {[%clk 0:01:00.5]} 32... Bxe3 {[%clk
0:01:06.6]} 33. Qxe3 {[%clk 0:00:59.3]} 33... Qh5+ {[%clk 0:01:06.9]} 34. Kg1
{[%clk 0:00:58.6]} 34... Qxf5 {[%clk 0:01:07.1]} 35. Rf1 {[%clk 0:00:57.8]}
35... Qh3 {[%clk 0:01:07.2]} 36. Rf3 {[%clk 0:00:53.5]} 36... Nd7 {[%clk
0:01:03]} 37. Nf1 {[%clk 0:00:51.4]} 37... Rg5 {[%clk 0:00:43.3]} 38. Rf7 {[%clk
0:00:36.8]} 38... e5 {[%clk 0:00:41.2]} 39. dxe5 {[%clk 0:00:28.5]} 39... Nxe5
{[%clk 0:00:41.2]} 40. Qf4 {[%clk 0:00:26.5]} 40... a6 {[%clk 0:00:34.4]} 41.
Re7 {[%clk 0:00:23]} 41... Rf5 {[%clk 0:00:33.5]} 42. Qd4 {[%clk 0:00:18.2]}
42... Nc6 {[%clk 0:00:31.2]} 43. Qe3 {[%clk 0:00:06.2]} 43... Nxe7 {[%clk
0:00:31.5]} 44. Qxe7 {[%clk 0:00:07.1]} 44... Qg4 {[%clk 0:00:31.6]} 45. Ne3
{[%clk 0:00:06.6]} 45... Qg5 {[%clk 0:00:23.3]} 46. Nxf5 {[%clk 0:00:05.6]}
46... Qxf5 {[%clk 0:00:23.7]} 47. Qe3 {[%clk 0:00:06.1]} 47... h5 {[%clk
0:00:23.6]} 48. Kh2 {[%clk 0:00:06]} 48... Qe4 {[%clk 0:00:19.8]} 49. Qxe4
{[%clk 0:00:05.9]} 49... dxe4 {[%clk 0:00:20.4]} 50. Re2 {[%clk 0:00:06.8]}
50... Rg4 {[%clk 0:00:21]} 51. Kh3 {[%clk 0:00:07.3]} 51... Kc7 {[%clk
0:00:21.7]} 52. Rf2 {[%clk 0:00:07.9]} 52... e3 {[%clk 0:00:21.3]} 53. Re2
{[%clk 0:00:08.1]} 53... Re4 {[%clk 0:00:22]} 54. Kg2 {[%clk 0:00:08.3]} 54...
Kd6 {[%clk 0:00:22.7]} 55. Kf3 {[%clk 0:00:09.2]} 55... Ke5 {[%clk 0:00:23.4]}
56. Rxe3 {[%clk 0:00:09.5]} 56... Rxe3+ {[%clk 0:00:24.3]} 57. Kxe3 {[%clk
0:00:10.4]} 57... b5 {[%clk 0:00:24.8]} 58. a4 {[%clk 0:00:08.8]} 58... bxa4
{[%clk 0:00:24]} 59. Kf3 {[%clk 0:00:09.2]} 59... Kf5 {[%clk 0:00:24.6]} 60. Kg2
{[%clk 0:00:08.6]} 60... Kg4 {[%clk 0:00:25.4]} 61. Kf2 {[%clk 0:00:09]} 61...
a5 {[%clk 0:00:25.7]} 62. Kg2 {[%clk 0:00:09.1]} 62... a3 {[%clk 0:00:24.8]} 63.
bxa3 {[%clk 0:00:09.2]} 63... a4 {[%clk 0:00:25.3]} 64. Kf2 {[%clk 0:00:09.7]}
64... Kg5 {[%clk 0:00:20.2]} 65. Kf3 {[%clk 0:00:09.3]} 65... Kf5 {[%clk
0:00:20.7]} 66. Kf2 {[%clk 0:00:09.1]} 66... Ke5 {[%clk 0:00:20.3]} 67. Ke3
{[%clk 0:00:08.9]} 67... Kf5 {[%clk 0:00:20.2]} 68. Kf3 {[%clk 0:00:09.3]} 68...
Kg5 {[%clk 0:00:19.8]} 69. Kg2 {[%clk 0:00:08.4]} 69... Kf5 {[%clk 0:00:18.2]}
70. Kf3 {[%clk 0:00:08.8]} 70... Ke5 {[%clk 0:00:18.8]} 71. Ke3 {[%clk 0:00:09]}
71... Kf5 {[%clk 0:00:18.3]} 72. Kf3 {[%clk 0:00:09.4]} 1/2-1/2

[Event "Late-Titled-Tuesday-Blitz-October-03-2023"]
[Site "Chess.com"]
[Date "2023.10.03"]
[Round "10"]
[White "GlavkonVVS"]
[Black "Mikhal867"]
[Result "1/2-1/2"]
[WhiteElo "2567"]
[BlackElo "2462"]
[TimeControl "180+1"]
[EndTime "15:52:53 PDT"]
[Termination "Game drawn by repetition"]

1. Nf3 {[%clk 0:03:00.9]} 1... c5 {[%clk 0:02:56.6]} 2. g3 {[%clk 0:03:01.3]}
2... Nc6 {[%clk 0:02:55.3]} 3. Bg2 {[%clk 0:03:01.9]} 3... e5 {[%clk 0:02:55.6]}
4. d3 {[%clk 0:03:02.6]} 4... d5 {[%clk 0:02:55.4]} 5. O-O {[%clk 0:03:02.1]}
5... f6 {[%clk 0:02:54.7]} 6. c4 {[%clk 0:03:02.7]} 6... d4 {[%clk 0:02:53.5]}
7. e3 {[%clk 0:03:02.9]} 7... Be6 {[%clk 0:02:53.3]} 8. exd4 {[%clk 0:03:03.3]}
8... cxd4 {[%clk 0:02:53.3]} 9. Re1 {[%clk 0:03:00.5]} 9... Qd7 {[%clk
0:02:53.2]} 10. a3 {[%clk 0:02:59.4]} 10... a5 {[%clk 0:02:52.8]} 11. Nbd2
{[%clk 0:02:59.3]} 11... Nh6 {[%clk 0:02:47.1]} 12. Ne4 {[%clk 0:02:55.3]} 12...
Nf7 {[%clk 0:02:46.8]} 13. Qa4 {[%clk 0:02:51.3]} 13... Nb8 {[%clk 0:02:35.2]}
14. Qc2 {[%clk 0:02:39.5]} 14... Be7 {[%clk 0:02:26.5]} 15. Bd2 {[%clk
0:02:37.9]} 15... a4 {[%clk 0:02:24.7]} 16. Bb4 {[%clk 0:02:35.2]} 16... Nc6
{[%clk 0:02:09.3]} 17. Bxe7 {[%clk 0:02:33.2]} 17... Qxe7 {[%clk 0:02:08.9]} 18.
b4 {[%clk 0:02:30.3]} 18... axb3 {[%clk 0:02:05.9]} 19. Qxb3 {[%clk 0:02:30.5]}
19... O-O {[%clk 0:02:05.5]} 20. Reb1 {[%clk 0:02:30.3]} 20... Rfb8 {[%clk
0:02:03.6]} 21. Qb6 {[%clk 0:02:19.2]} 21... Ra6 {[%clk 0:01:44.8]} 22. Qc5
{[%clk 0:02:18.5]} 22... Qd8 {[%clk 0:01:33.7]} 23. a4 {[%clk 0:02:06.2]} 23...
Ra5 {[%clk 0:01:30.7]} 24. Rb5 {[%clk 0:02:04.6]} 24... Rba8 {[%clk 0:01:28.4]}
25. h3 {[%clk 0:01:43.3]} 25... h6 {[%clk 0:01:24.2]} 26. Ned2 {[%clk
0:01:27.6]} 26... Nd6 {[%clk 0:01:08.9]} 27. Rxa5 {[%clk 0:01:25.2]} 27... Rxa5
{[%clk 0:01:07.2]} 28. Qa3 {[%clk 0:01:24.5]} 28... b5 {[%clk 0:00:59]} 29. Qc5
{[%clk 0:01:14.7]} 29... Ne7 {[%clk 0:00:37.5]} 30. Nb3 {[%clk 0:01:06.1]} 30...
Rxa4 {[%clk 0:00:35.6]} 31. Rxa4 {[%clk 0:00:57.9]} 31... bxa4 {[%clk
0:00:35.7]} 32. Na5 {[%clk 0:00:58.5]} 32... Nec8 {[%clk 0:00:29]} 33. Qb4
{[%clk 0:00:28.7]} 33... Bd7 {[%clk 0:00:26.5]} 34. c5 {[%clk 0:00:25.3]} 34...
Ne8 {[%clk 0:00:23.3]} 35. c6 {[%clk 0:00:22.2]} 35... Be6 {[%clk 0:00:23.1]}
36. Qxa4 {[%clk 0:00:21.7]} 36... Kh8 {[%clk 0:00:22.7]} 37. Nd2 {[%clk
0:00:21.5]} 37... Qb6 {[%clk 0:00:22.1]} 38. Ndc4 {[%clk 0:00:19.1]} 38... Qb1+
{[%clk 0:00:21.8]} 39. Kh2 {[%clk 0:00:19.4]} 39... Qxd3 {[%clk 0:00:22.2]} 40.
Qb5 {[%clk 0:00:17]} 40... Bxc4 {[%clk 0:00:18.8]} 41. Qxc4 {[%clk 0:00:16.7]}
41... Qd2 {[%clk 0:00:16]} 42. f3 {[%clk 0:00:13.8]} 42... Qxa5 {[%clk
0:00:15.4]} 43. Qe6 {[%clk 0:00:14]} 43... Ncd6 {[%clk 0:00:15]} 44. Qd7 {[%clk
0:00:14.3]} 44... Qc7 {[%clk 0:00:14.5]} 45. f4 {[%clk 0:00:14.3]} 45... d3
{[%clk 0:00:14.4]} 46. fxe5 {[%clk 0:00:13.4]} 46... fxe5 {[%clk 0:00:14.8]} 47.
Bf3 {[%clk 0:00:13.9]} 47... e4 {[%clk 0:00:13.9]} 48. Bh5 {[%clk 0:00:14.3]}
48... d2 {[%clk 0:00:12.7]} 49. Kg1 {[%clk 0:00:13.7]} 49... Kg8 {[%clk
0:00:11]} 50. Kf2 {[%clk 0:00:14]} 50... Kf8 {[%clk 0:00:11.1]} 51. Ke2 {[%clk
0:00:13.7]} 51... g6 {[%clk 0:00:11.5]} 52. Bxg6 {[%clk 0:00:13]} 52... Qxd7
{[%clk 0:00:09.5]} 53. cxd7 {[%clk 0:00:12.8]} 53... Ke7 {[%clk 0:00:09.5]} 54.
dxe8=Q+ {[%clk 0:00:12.9]} 54... Nxe8 {[%clk 0:00:09.7]} 55. Bxe4 {[%clk
0:00:13.1]} 55... Nd6 {[%clk 0:00:09.1]} 56. Bf3 {[%clk 0:00:13.5]} 56... Nc4
{[%clk 0:00:09]} 57. Bd5 {[%clk 0:00:12.7]} 57... Ne5 {[%clk 0:00:08]} 58. Kxd2
{[%clk 0:00:12.5]} 58... Kf6 {[%clk 0:00:07.6]} 59. Be4 {[%clk 0:00:12.7]} 59...
Kg5 {[%clk 0:00:07.8]} 60. Ke3 {[%clk 0:00:13.1]} 60... Nf7 {[%clk 0:00:08]} 61.
h4+ {[%clk 0:00:13.3]} 61... Kf6 {[%clk 0:00:08.1]} 62. Kf4 {[%clk 0:00:13.2]}
62... Nd6 {[%clk 0:00:08.7]} 63. Bd3 {[%clk 0:00:13]} 63... Nc8 {[%clk
0:00:08.5]} 64. g4 {[%clk 0:00:13.4]} 64... Ne7 {[%clk 0:00:08.6]} 65. Be4
{[%clk 0:00:13.2]} 65... Nc8 {[%clk 0:00:08.1]} 66. g5+ {[%clk 0:00:13.2]} 66...
hxg5+ {[%clk 0:00:07.8]} 67. hxg5+ {[%clk 0:00:14.1]} 67... Kg7 {[%clk
0:00:07.9]} 68. Bf5 {[%clk 0:00:14.1]} 68... Nd6 {[%clk 0:00:07.7]} 69. Bd3
{[%clk 0:00:14.1]} 69... Ne8 {[%clk 0:00:07.6]} 70. Kf5 {[%clk 0:00:13.7]} 70...
Nd6+ {[%clk 0:00:07.7]} 71. Ke6 {[%clk 0:00:14.1]} 71... Nb7 {[%clk 0:00:06.1]}
72. Be4 {[%clk 0:00:13.5]} 72... Nc5+ {[%clk 0:00:06.1]} 73. Ke5 {[%clk
0:00:14.1]} 73... Nxe4 {[%clk 0:00:05.2]} 74. Kxe4 {[%clk 0:00:14.5]} 74... Kg6
{[%clk 0:00:05.7]} 75. Kf4 {[%clk 0:00:15.1]} 75... Kg7 {[%clk 0:00:06.1]} 76.
Kg3 {[%clk 0:00:15.4]} 76... Kg6 {[%clk 0:00:06.4]} 77. Kh4 {[%clk 0:00:16]}
77... Kg7 {[%clk 0:00:06.5]} 78. Kh5 {[%clk 0:00:16.7]} 78... Kh7 {[%clk
0:00:06.6]} 79. Kh4 {[%clk 0:00:17]} 79... Kg6 {[%clk 0:00:06.7]} 80. Kg4 {[%clk
0:00:17.9]} 80... Kg7 {[%clk 0:00:07.1]} 81. Kf5 {[%clk 0:00:18.8]} 81... Kf7
{[%clk 0:00:07.5]} 82. g6+ {[%clk 0:00:19.5]} 82... Kg7 {[%clk 0:00:07.8]} 83.
Kg5 {[%clk 0:00:20.4]} 83... Kg8 {[%clk 0:00:08.2]} 84. Kh6 {[%clk 0:00:20.6]}
84... Kh8 {[%clk 0:00:08.3]} 85. Kh5 {[%clk 0:00:21]} 85... Kg7 {[%clk
0:00:08.5]} 86. Kg5 {[%clk 0:00:21.4]} 86... Kg8 {[%clk 0:00:08.9]} 87. Kg4
{[%clk 0:00:21.9]} 87... Kg7 {[%clk 0:00:09.1]} 88. Kf5 {[%clk 0:00:22.5]} 88...
Kg8 {[%clk 0:00:09.4]} 89. Kf6 {[%clk 0:00:22.7]} 89... Kf8 {[%clk 0:00:09.6]}
90. Ke5 {[%clk 0:00:22.4]} 90... Kg7 {[%clk 0:00:09.8]} 91. Kf5 {[%clk
0:00:23.3]} 91... Kg8 {[%clk 0:00:10]} 92. Kg5 {[%clk 0:00:23.9]} 92... Kg7
{[%clk 0:00:10.3]} 93. Kh5 {[%clk 0:00:24.8]} 93... Kg8 {[%clk 0:00:09.5]} 94.
Kh6 {[%clk 0:00:25.7]} 94... Kh8 {[%clk 0:00:09.4]} 95. Kh5 {[%clk 0:00:26]}
95... Kg7 {[%clk 0:00:09.3]} 96. Kg5 {[%clk 0:00:26.9]} 1/2-1/2